Cogmind - Beta 17 @@@ ROGUE MODE // 2026.07.28 @ 21:06:11 Player: PE-P51 Result: Destroyed by as-19210 with Assembled Blade Performance ------------- Evolutions (0) 0 Regions Visited (2) 400 Robots Destroyed (15) 75 Value Destroyed (401) 401 Prototype IDs (0) 0 Alien Tech Used (0) 0 Bonus (0) 0 TOTAL SCORE: 876 Bonus ------- None Cogmind --------- Core Integrity 0/250 Matter 203/300 Energy 61/250 System Corruption 1% Temperature Cool (42) Movement Core (350) Ox6 Location -10/Mines Parts ------- > --- POWER (1) -------- Ion Engine > --- PROPULSION (2) --- Aluminum Leg > --- UTILITY (2) ------ Improved Heat Sink Medium Storage Unit > --- WEAPON (2) ------- Beam Cannon > --- INVENTORY (10) --- Light Treads Aluminum Leg Aluminum Leg Aluminum Leg Medium Laser Light Assault Rifle Mining Laser Peak State ------------ > --- POWER ------------ Ion Engine > --- PROPULSION ------- Aluminum Leg Aluminum Leg > --- UTILITY ---------- Improved Heat Sink Medium Storage Unit > --- WEAPON ----------- Medium Laser Assault Rifle > --- INVENTORY -------- Ion Engine Light Treads Light Treads Aluminum Leg Aluminum Leg Aluminum Leg Beam Cannon Beam Cannon Beam Cannon Mining Laser [Rating: 10] Favorites ----------- Power Ion Engine Engine Ion Engine Propulsion Aluminum Leg Treads Light Treads Leg Aluminum Leg Utility Improved Heat Sink Device Improved Heat Sink Storage Small Storage Unit Weapon Medium Laser Energy Gun Medium Laser Energy Cannon Beam Cannon Ballistic Gun Assault Rifle Special Weapon Mining Laser Build | -11 -10 -10 ------- Run | Yrd Mat Min Slots Evolved . | . . . Power . | . . . Propulsion . | . . . Utility . | . . . Weapon . | . . . Parts Attached 16 | 1 9 6 Power 2 | . 1 1 Engine 2 | . 1 1 Core . | . . . Reactor . | . . . Propulsion 5 | . 4 1 Treads 1 | . . 1 Leg 4 | . 4 . Wheel . | . . . Hover . | . . . Flight . | . . . Utility 2 | . 2 . Device 1 | . 1 . Storage 1 | . 1 . Processor . | . . . Hackware . | . . . Protection . | . . . Artifact . | . . . Weapon 7 | 1 2 4 Energy Gun 1 | . . 1 Energy Cannon 3 | . . 3 Ballistic Gun 2 | 1 1 . Ballistic Cannon . | . . . Launcher . | . . . Special Weapon 1 | . 1 . Impact Weapon . | . . . Slashing Weapon . | . . . Piercing Weapon . | . . . Special Melee Weapon . | . . . Unidentified Prototypes . | . . . Parts Lost 5 | . . 5 Power 1 | . . 1 Propulsion 2 | . . 2 Utility . | . . . Weapon 2 | . . 2 Highest Loss Streak 5 | . . 5 To Critical Strikes . | . . . Average Backups 8 | 6 8 9 Power . | 1 1 . Propulsion 4 | 4 4 4 Utility . | . . . Weapon 3 | 1 3 3 Tool/Special . | . . . Unused Backups 11 | . 8 3 Power 2 | . 2 . Propulsion 7 | . 4 3 Utility 1 | . 1 . Weapon 1 | . 1 . Tool/Special . | . . . Average Slot Usage (%) 98 | . 98 100 Engine 14 | . 14 14 Leg 27 | . 28 26 Device 12 | . 12 14 Storage 14 | . 14 14 Energy Gun 12 | . 12 6 Energy Cannon 1 | . . 16 Ballistic Gun 13 | . 14 6 Special Weapon 1 | . 1 . Peak Build Rating 10 | 6 10 10 Average Rating 9 | 5 9 9 On Entrance 7 | 6 6 10 Avg Prop Armor Cover (%) . | . . . Naked Turns . | . . . Heaviest Build 22 | 14 20 22 Greatest Support 20 | 20 20 20 Greatest Overweight (x) 1 | . . 1 Average Overweight (x) . | . . . Largest Inventory Capacity 10 | 8 10 10 Average Capacity 8 | 8 8 10 Most Carried 10 | 7 10 10 Average Carried 8 | 6 8 9 Final Capacity 10 | 8 10 10 Final Carried 10 | 6 10 7 Class Distribution -------------------- 94% | Mutant 5% | Scavenger-Mutant Dominant Class ---------------- Mutant | -10/Materials Mutant | -10/Mines Resources | -11 -10 -10 ----------- Run | Yrd Mat Min Matter Collected 341 | 200 141 . Remotely . | . . . Salvage Created 416 | . 356 60 Parts 28 | . 25 3 Haulers Intercepted . | . . . Recyclers Shooed . | . . . Parts Field Recycled . | . . . Retrieved Matter . | . . . Parts Self-Destructed . | . . . Prevented . | . . . Parts Restored . | . . . Kills | -11 -10 -10 ------- Run | Yrd Mat Min Combat Hostiles Destroyed 12 | . 10 2 Guns 10 | . 10 . Cannons 2 | . . 2 Classes Destroyed 5 | . 3 2 Recycler 1 | . . 1 Operator 2 | . 2 . Swarmer 4 | . 4 . Grunt 6 | . 6 . Demolisher 2 | . . 2 Best Kill Streak 3 | . 3 3 Combat Bots Only 3 | . 3 2 Max Kills in Single Turn 2 | . 1 2 Gunslinging . | . . . Exploded . | . . . Melee . | . . . Uniques/NPCs Destroyed . | . . . Combat | -11 -10 -10 -------- Run | Yrd Mat Min Hostile Shots Fired 72 | . 44 28 Missed 16 | . 12 4 Hits 56 | . 32 24 Melee 2 | . . 2 Projectile 54 | . 32 22 AOE 18 | . . 18 Damage Taken 1210 | . 310 900 Core 250 | . 30 220 Absorbed by Shields . | . . . Core Remaining (%) 100 | 100 . . Volleys Fired 39 | 1 31 7 Largest 2 | 2 2 2 Hottest 120 | 90 70 120 Shots Fired 76 | 2 62 12 Gun 64 | 2 62 . Cannon 12 | . . 12 Launcher . | . . . Special . | . . . Kinetic 31 | . 31 . Thermal 44 | 1 31 12 Explosive . | . . . Electromagnetic 1 | 1 . . Robot Hit Streak 10 | 1 10 8 Robot Miss Streak 4 | 1 4 1 Penetration Max . | . . . Secondary Targets 1 | . 1 . Max Gunslinging Chain 1 | . 1 . Shots Hit Robots 48 | 1 38 9 Core Hits 27 | 1 21 5 Critical Kills . | . . . Critical Parts Destroyed . | . . . Critical Strikes 1 | . 1 . Burn 1 | . 1 . Melee Attacks . | . . . Impact . | . . . Slashing . | . . . Piercing . | . . . Sneak Attacks . | . . . Combat Hostiles . | . . . Follow-up Attacks . | . . . Damage Inflicted 663 | 13 474 176 Guns 487 | 13 474 . Cannons 176 | . . 176 Explosions . | . . . Melee . | . . . Ramming . | . . . Kinetic 184 | . 184 . Thermal 479 | 13 290 176 Explosive . | . . . Electromagnetic . | . . . Impact . | . . . Slashing . | . . . Piercing . | . . . Highest Corruption 1 | . 1 1 Average Corruption 1 | . 1 1 Corruption Purged . | . . . Corruption Blocked . | . . . Effects 3 | . 1 2 Message Errors 1 | . . 1 Matter Fused 1 | . . 1 Energy Discharges 1 | . 1 . Overload Shots . | . . . Overflow Damage . | . . . Projectiles . | . . . Explosions . | . . . Melee . | . . . Knockbacks . | . . . Impact . | . . . Kinetic . | . . . Secondary . | . . . Self-Inflicted Damage . | . . . Shots . | . . . Rammed . | . . . Targets Rammed . | . . . Kicked . | . . . Crushed . | . . . Highest Temperature 54 | 30 30 54 Average Temperature 14 | 17 8 26 Received Heat Transfer 110 | . 90 20 Siege Activations . | . . . Martial Activations . | . . . Shielding Activations . | . . . Robots Disrupted . | . . . Combat Hostiles . | . . . Robots Corrupted . | . . . Combat Hostiles . | . . . Parts Fried . | . . . Impact Corruptions . | . . . Robots Melted . | . . . Combat Hostiles . | . . . Parts Melted 2 | . 2 . Heat Transferred 1295 | 37 888 370 Parts Sabotaged . | . . . Parts Stolen . | . . . Parts Stripped . | . . . Power Chain Reactions . | . . . Alert | -11 -10 -10 ------- Run | Yrd Mat Min Maximum Alert Level . | . . . Low Security (%) 100 | 100 100 100 Level 1 . | . . . Level 2 . | . . . Level 3 . | . . . Level 4 . | . . . Level 5 . | . . . High Security . | . . . Max Security . | . . . Peak Influence 115 | . 115 35 Initial 25 | . . 25 Average 30 | . 32 15 Influence Increases 336 | . 281 55 Destroy 0b10 Robot/C 240 | . 200 40 Destroy 0b10 Robot/NC 15 | . 10 5 Destroy Leader 50 | . 40 10 Successful Hack 16 | . 16 . Lose Combat Pursuer 15 | . 15 . Influence Decreases 311 | . 214 97 Entered New Map 42 | . . 42 Time Decay 244 | . 214 30 Lost Part 25 | . . 25 Squads Dispatched 2 | . 2 . Investigation 1 | . 1 . Extermination . | . . . Reinforcement 1 | . 1 . Assault . | . . . Garrison . | . . . Intercept . | . . . Searches Triggered . | . . . Construction Impeded . | . . . Haulers Reinforced . | . . . Active Scanning Responses . | . . . Cargo Convoy Interrupts . | . . . Stealth | -11 -10 -10 --------- Run | Yrd Mat Min Distress Signals 2 | . 2 . Communications Jammed . | . . . Distress Signals . | . . . Times Spotted 31 | . 22 9 Peak Tracking Total 5 | . 5 5 Tactical Retreats 1 | . 1 . Traps | -11 -10 -10 ------- Run | Yrd Mat Min Traps Triggered 2 | . 2 . Indirectly . | . . . Trap Hack Attempts . | . . . Triggered . | . . . Disarmed . | . . . Reprogrammed . | . . . Reused . | . . . Traps Extracted . | . . . Installed . | . . . Triggered . | . . . Machines | -11 -10 -10 ---------- Run | Yrd Mat Min Machines Disabled . | . . . Max in Single Turn . | . . . Machines Repaired . | . . . Machines Dismantled . | . . . Machines Sabotaged . | . . . Overloaded Fab Kills . | . . . Hacking | -11 -10 -10 --------- Run | Yrd Mat Min Machines Accessed 7 | . 7 . Terminals 7 | . 7 . Fabricators . | . . . Repair Stations . | . . . Recycling Units . | . . . Scanalyzers . | . . . Garrison Access . | . . . Total Hacks 20 | . 20 . Successful 7 | . 7 . Failed 13 | . 13 . Catastrophic 4 | . 4 . Database Lockouts . | . . . Manual 15 | . 15 . Terminals 20 | . 20 . Fabricators . | . . . Repair Stations . | . . . Recycling Units . | . . . Scanalyzers . | . . . Garrison Access . | . . . Terminal Hacks 7 | . 7 . Robot Analysis 3 | . 3 . Alert Level 1 | . 1 . Locate Traps 1 | . 1 . Hauler Manifests 1 | . 1 . Zone Layout 1 | . 1 . Fabricator Hacks . | . . . Repair Station Hacks . | . . . Recycling Unit Hacks . | . . . Scanalyzer . | . . . Garrison Access Hacks . | . . . Unauthorized Hacks . | . . . Terminals . | . . . Fabricators . | . . . Repair Stations . | . . . Recycling Units . | . . . Scanalyzers . | . . . Garrison Access . | . . . Data Cores Recovered 1 | . 1 . Used . | . . . Hacking Detections 6 | . 6 . Full Trace Events . | . . . Feedback Events . | . . . Feedback Blocked . | . . . Robot Schematics Acquired . | . . . Robots Built . | . . . Authchips . | . . . Time . | . . . Total Robot Build Rating . | . . . Part Schematics Acquired . | . . . Parts Built . | . . . Authchips . | . . . Time . | . . . Total Part Build Rating . | . . . Part Studies Acquired . | . . . Parts Repaired . | . . . Time . | . . . Parts Recycled . | . . . Recycled Matter . | . . . Retrieved Matter . | . . . Retrieved Components . | . . . Parts Scanalyzed . | . . . Part Schematics Acquired . | . . . Parts Damaged . | . . . Bothacking | -11 -10 -10 ------------ Run | Yrd Mat Min Used RIF Installer . | . . . Robots Hacked . | . . . Non-combat . | . . . Combat . | . . . Robot Hacks Applied . | . . . Relay Couplers Released . | . . . Fabnet Peak Effective % . | . . . Robots Rewired . | . . . Allies Hacked . | . . . Hacks Repelled . | . . . Allies | -11 -10 -10 -------- Run | Yrd Mat Min Total Allies . | . . . Largest Group . | . . . Highest-Rated Group . | . . . Highest-Rated Ally . | . . . Total Orders . | . . . Ally Attacks . | . . . Total Damage . | . . . Kills . | . . . Allies Corrupted . | . . . Allies Melted . | . . . Intel | -11 -10 -10 ------- Run | Yrd Mat Min Active Infowar (turns) . | . . . Robot Analysis Total 3 | . 3 . Derelict Logs Recovered . | . . . Drone Launches . | . . . Drone Recoveries . | . . . Exploration | -11 -10 -10 ------------- Run | Yrd Mat Min Turns Passed 796 | 5 725 66 Spaces Moved 532 | 1 506 25 Core . | . . . Treads . | . . . Legs 532 | 1 506 25 Wheels . | . . . Hover . | . . . Flight . | . . . Fastest Speed 120 | 120 120 120 Average Speed 121 | 120 120 148 Slowest Speed 190 | 120 120 190 Overloaded Moves . | . . . Propulsion Burnouts . | . . . Robots Hopped . | . . . Potential Cave-ins . | . . . Cave-ins Triggered . | . . . Exploration Rate (%) 34 | 2 91 9 Regions Visited 2 Branch Regions 1 Pre-discovered Areas . | . . . Known Exits Taken . | . . . Unknown Exits Taken 2 | 1 1 . Scrap Searched . | . . . Spaces Dug . | . . . Terrain Destroyed . | . . . Melee . | . . . Projectile . | . . . AOE . | . . . Terrain Rammed . | . . . Walls Destroyed . | . . . Machines Disabled . | . . . Actions | -11 -10 -10 --------- Run | Yrd Mat Min Total 611 | 3 567 41 Wait 6 | . 4 2 Move 530 | . 505 25 Hop . | . . . Pick Up 7 | . 7 . Fast Attach 1 | . 1 . Attach 4 | 1 . 3 Detach 1 | 1 . . Swap 13 | . 9 4 Drop 10 | . 10 . Fire 39 | 1 31 7 Melee . | . . . Ram . | . . . Kick . | . . . Crush . | . . . Escape Stasis . | . . . Rewire . | . . . Trap . | . . . Miscellaneous . | . . . Route ------- -11/Scrapyard -10/Materials (discovered 4 exits: [*Mat x3] / [*Min]) -10/Mines History --------- Turn | Location | Event 6 | -11/Scrapyard | Discovered new exit (range 0) 6 | -11/Scrapyard | Entered Materials 144 | -10/Materials | Discovered new exit (range 15) 311 | -10/Materials | Build established: Mutant 367 | -10/Materials | Discovered new exit (range 10) 530 | -10/Materials | Discovered new exit (range 4) 655 | -10/Materials | Discovered new exit (range 9) 731 | -10/Materials | Entered Mines 744 | -10/Mines | Assembled infested the area 778 | -10/Mines | Core integrity fell below 50% 794 | -10/Mines | Core integrity fell below 20% 797 | -10/Mines | Destroyed by as-19210 with Assembled Blade Last Messages --------------- 00757_ K-01 Serf collects debris. 00774_ C-45 Heavy ARC bursts open, deploying its payload. 00774_ D-53 Grenadier unfolds itself. 00774_ as-40897 destroyed. 00775_ as-43844 destroyed. 00775_ Core Extractor disabled. 00777_ Ion Engine destroyed. 00781_ Aluminum Leg destroyed. 00781_ Beam Cannon destroyed. 00783_ Core Extractor disabled. 00784_ The unstable cave ceiling collapses. 00788_ D-53 Grenadier destroyed. 00788_ R-06 Scavenger destroyed. 00789_ The unstable cave ceiling collapses. 00791_ Beam Cannon destroyed. 00792_ Lgt. Treads destroyed. 00794_ The unstable cave ceiling collapses. 00794_ R-06 Scavenger collects Tractor Beam. 00794_ D-53 Grenadier destroyed. 00795_ The unstable cave ceiling collapses. Map ----- +----------------------------------------------------+ | ??????????????????????????????????????????? | | ??????????????????????????????????????????? | | ??????????????????????????????????????????? | | ????????????????????????????????? ????????? | | ???????????????????????????????? ??????? | | ???????????????????????????????? ??????? | | ???????????????????????????????# ??????? | | ??????????????????????????????# ??????? | | ?????????????????????????????# ???????? | | ????????????????????????????# ???????? | | ????????????????????????????# ????????? | | ????????????????????????????# ?????????? | | ????????????????????????????# ?????????? | | ????????????????????????????# ??????????? | | ???????????????????????????? #??????????? | | ????????????????????????????# #??????????? | | ?????????????????????????####a #??????????? | | ???????????????????????## a!###????????? | | ??????????????????????? |= #????????? | | ??????????????????????## "" #????????? | | ??????????????????????# a " #????????? | | ????????????????????### "" #????????? | | ????????????????????# #????????? | | ????????????????????# # ###????????? | | ????????????????????# a ##?????????? | | ????????????????????# @# ##????????? | | ????????????????????# ##???????? | | ????????????????????# #???????? | | ????????????????????## #??????? | | ?????????????????????## #### #?????? | | ??????????????????????## ##????? #?????? | | ???????????????????????## #?????????????? | | ????????????????????????##= #?????????????? | | ?????????????????????????#r #?????????????? | | ?????????????????????????# #?????????????? | | ????????????????????????? #?????????????? | | ?????????????????????????# ?????????????? | | ?????????????????????????? ?????????????? | | ??????????????????????????###?????????????? | | ??????????????????????????????????????????? | | ??????????????????????????????????????????? | | ??????????????????????????????????????????? | | ??????????????????????????????????????????? | | ??????????????????????????????????????????? | | ??????????????????????????????????????????? | | ??????????????????????????????????????????? | | ??????????????????????????????????????????? | | ??????????????????????????????????????????? | | ??????????????????????????????????????????? | | ??????????????????????????????????????????? | +----------------------------------------------------+ Best States ------------- Heat Dissipation 39 Energy Generation 10 Energy Capacity 250 Matter Stores 300 Matter Capacity 300 Sight Range 16 Terrain Scan Density 10 Evasion (%) 55 Recoil Reduction 1 Item Schematics ----------------- None Robot Schematics ------------------ None Fabricated ------------ Nothing Repaired ---------- Nothing Studied --------- None Alien Tech Used ----------------- None Achievements -------------- None Challenges ------------ None Game ------ Seed DisruptorLaunchExoskeleton Manual? 0 Play Time 00:11:08 Cumulative 345.2 hours Start 2026.07.28 @ 20:57:42 End 2026.07.28 @ 21:06:11 Sessions 1 Manual Loads 0 Difficulty Rogue Special Mode None Game No. 429 Rogue 427 Adventurer 2 Explorer 0 Win Type - Total 4 Types 2/0/0/1/1/0/0/0/0/0 Lore% 81 Gallery% 67 Achievement% 62 Wizard Run 0 Options --------- Layout 0 ASCII 0 Keyboard 0 Movement Numpad Keybinds 0 Fullscreen 2 Font 24/Smallcaps Map View 76x50 Zoom Use 0% Tactical HUD 1 Map Filters NONE Filters NONE Steam 1 RUN: 682cd7da-4b27-47ff-964b-8fe516e7d717